fUSD/lending_fUSD_20250415
["ID","MTS","AMOUNT","RATE_DAILY","PERIOD"]
[358067390,1744684242700,-500.0,0.00017897,2]
[358067391,1744684242709,-500.0,0.00017897,2]
[358067392,1744684242719,-534.00366593,0.00017897,2]
[358067393,1744684242728,-504.4025027,0.00017897,2]
[358067394,1744684242738,-502.70922153,0.00017897,2]
[358067395,1744684242747,-517.68022083,0.00017897,2]
[358067396,1744684242756,-514.23222169,0.00017897,2]
[358067397,1744684242766,-500.0,0.00017897,2]
[358067398,1744684242775,-530.61559159,0.00017897,2]
[358067399,1744684242785,-504.19453446,0.00017897,2]
[358067400,1744684242794,-503.91280715,0.00017897,2]
[358067401,1744684242803,-500.0,0.00017897,2]
[358067402,1744684242813,-514.98675273,0.00017897,2]
[358067403,1744684242823,-500.0,0.00017897,2]
[358067404,1744684242832,-500.0,0.00017897,2]
[358067405,1744684242842,-500.0,0.00017897,2]
[358067406,1744684242852,-500.0,0.00017897,2]
[358067407,1744684242862,-500.66853145,0.00017897,2]
[358067408,1744684242871,-510.34966364,0.00017897,2]
[358067409,1744684242881,-500.0,0.00017897,2]
[358067410,1744684242891,-500.0,0.00017897,2]
[358067411,1744684242902,-500.0,0.00017897,2]
[358067412,1744684242911,-500.0,0.00017897,2]
[358067413,1744684242921,-568.48761967,0.00017897,2]
[358067414,1744684242931,-420.35782329,0.00017897,2]
[358067415,1744684242946,-79.64217671,0.00017897,2]
[358067416,1744684242955,-251.42782329,0.00017897,2]
[358067417,1744684242966,-248.57217671,0.00017897,2]
[358067419,1744684242976,-500.0,0.00017897,2]
[358067420,1744684242985,-500.0,0.00017897,2]
[358067421,1744684242995,-274.53335089,0.00017897,2]
[358067422,1744684243007,-225.46664911,0.00017897,2]
[358067423,1744684243016,-308.24735435,0.00017897,2]
[358067427,1744684243201,-228.30750356,0.00017897,2]
[358067428,1744684243211,-154.05173459,0.00017897,2]
[358067431,1744684243222,-277.93778611,0.00017897,2]
[358067432,1744684243313,-68.0104793,0.00017897,2]
[358067433,1744684243322,-236.99670091,0.00017897,2]
[358067434,1744684243333,-263.00329909,0.00017897,2]
[358067435,1744684243344,-500.0,0.00017897,2]
[358067436,1744684243354,-558.74,0.00017897,2]
[358067437,1744684243364,-500.0,0.00017897,2]
[358067438,1744684243375,-409.90099896,0.00017897,2]
[358067439,1744684243385,-524.80571247,0.00017897,2]
[358067440,1744684243394,-500.0,0.00017897,2]
[358067441,1744684243404,-500.0,0.00017897,2]
[358067442,1744684243414,-500.0,0.00017897,2]
[358067443,1744684243423,-500.0,0.00017897,2]
[358067444,1744684243433,-500.0,0.00017897,2]
[358067445,1744684243441,-500.0,0.00017897,2]
[358067446,1744684243451,-500.0,0.00017897,2]
[358067447,1744684243460,-500.0,0.00017897,2]
[358067448,1744684243470,-500.0,0.00017897,2]
[358067449,1744684243479,-500.0,0.00017897,2]
[358067450,1744684243489,-525.05512906,0.00017897,2]
[358067451,1744684243498,-500.0,0.00017897,2]
[358067452,1744684243507,-500.0,0.00017897,2]
[358067453,1744684243517,-500.0,0.00017897,2]
[358067454,1744684243526,-500.0,0.00017897,2]
[358067455,1744684243536,-500.0,0.00017897,2]
[358067456,1744684243545,-273.21,0.00017897,2]
[358067457,1744684243555,-509.19965779,0.00017897,2]
[358067458,1744684243564,-621.4288182,0.00017897,2]
[358067459,1744684243574,-500.0,0.00017897,2]
[358067460,1744684243583,-500.0,0.00017897,2]
[358067461,1744684243593,-500.0,0.00017897,2]
[358067462,1744684243602,-500.0,0.00017897,2]
[358067463,1744684243612,-542.79,0.00017897,2]
[358067464,1744684243621,-500.0,0.00017897,2]
[358067465,1744684243631,-577.82974581,0.00017897,2]
[358067466,1744684243642,-500.0,0.00017897,2]
[358067468,1744684243652,-500.0,0.00017897,2]
[358067469,1744684243662,-364.6268458,0.00017897,2]
[358067471,1744684243671,-500.0,0.00017897,2]
[358067472,1744684243680,-529.91028517,0.00017897,2]
[358067473,1744684243690,-511.1783956,0.00017897,2]
[358067474,1744684243700,-512.49437917,0.00017897,2]
[358067475,1744684243710,-500.0,0.00017897,2]
[358067476,1744684243719,-545.6,0.00017897,2]
[358067478,1744684243729,-502.00713616,0.00017897,2]
[358067479,1744684243738,-500.0,0.00017897,2]
[358067480,1744684243748,-150.89,0.00017897,2]
[358067481,1744684243757,-500.0,0.00017897,2]
[358067482,1744684243767,-516.05895361,0.00017897,2]
[358067483,1744684243776,-507.52433325,0.00017897,2]
[358067484,1744684243786,-508.35585769,0.00017897,2]
[358067485,1744684243795,-500.0,0.00017897,2]
[358067486,1744684243805,-500.0,0.00017897,2]
[358067487,1744684243814,-500.0,0.00017897,2]
[358067488,1744684243824,-510.26357182,0.00017897,2]
[358067489,1744684243834,-500.0,0.00017897,2]
[358067490,1744684243843,-500.0,0.00017897,2]
[358067491,1744684243853,-500.0,0.00017897,2]
[358067492,1744684243863,-632.94435107,0.00017897,2]
[358067493,1744684243873,-568.55443127,0.00017897,2]
[358067494,1744684243882,-512.68778651,0.00017897,2]
[358067495,1744684243891,-512.90703074,0.00017897,2]
[358067496,1744684243900,-513.07378412,0.00017897,2]
[358067497,1744684243909,-500.0,0.00017897,2]
[358067498,1744684243918,-513.99287115,0.00017897,2]
[358067499,1744684243927,-500.73716374,0.00017897,2]
[358067500,1744684243936,-503.52149542,0.00017897,2]
[358067501,1744684243945,-510.68163171,0.00017897,2]
[358067502,1744684243954,-500.0,0.00017897,2]
[358067503,1744684243963,-518.15072384,0.00017897,2]
[358067504,1744684243972,-500.0,0.00017897,2]
[358067505,1744684243981,-511.7271763,0.00017897,2]
[358067506,1744684243990,-508.37151413,0.00017897,2]
[358067507,1744684243999,-500.0,0.00017897,2]
[358067508,1744684244008,-505.24034728,0.00017897,2]
[358067509,1744684244016,-536.65189069,0.00017897,2]
[358067510,1744684244026,-500.0,0.00017897,2]
[358067511,1744684244035,-335.84211687,0.00017897,2]
[358067512,1744684244044,-400.0425655,0.00017897,2]
[358067513,1744684244058,-99.9574345,0.00017897,2]
[358067514,1744684244066,-500.0,0.00017897,2]
[358067515,1744684244075,-516.75454965,0.00017897,2]
[358067516,1744684244084,-500.0,0.00017897,2]
[358067517,1744684244093,-378.83928221,0.00017897,2]
[358067518,1744684244101,-526.64837728,0.00017897,2]
[358067519,1744684244110,-535.15892644,0.00017897,2]
[358067520,1744684244119,-500.0,0.00017897,2]
[358067521,1744684244127,-200.11656939,0.00017897,2]
[358067522,1744684244139,-330.49044834,0.00017897,2]
[358067523,1744684244147,-234.07874068,0.00017897,2]
[358067524,1744684244159,-265.92125932,0.00017897,2]
[358067525,1744684244167,-500.0,0.00017897,2]
[358067526,1744684244177,-511.94337438,0.00017897,2]
[358067527,1744684244186,-516.98325508,0.00017897,2]
[358067528,1744684244195,-500.0,0.00017897,2]
[358067529,1744684244205,-489.39448947,0.00017897,2]
[358067530,1744684244214,-500.0,0.00017897,2]
[358067531,1744684244223,-500.0,0.00017897,2]
[358067532,1744684244233,-530.76092084,0.00017897,2]
[358067533,1744684244242,-500.0,0.00017897,2]
[358067534,1744684244251,-500.0,0.00017897,2]
[358067535,1744684244260,-500.0,0.00017897,2]
[358067536,1744684244270,-500.0,0.00017897,2]
[358067537,1744684244279,-500.0,0.00017897,2]
[358067538,1744684244289,-513.10596433,0.00017897,2]
[358067539,1744684244302,-509.45553612,0.00017897,2]
[358067540,1744684244311,-500.0,0.00017897,2]
[358067541,1744684244320,-500.0,0.00017897,2]
[358067542,1744684244330,-500.0,0.00017897,2]
[358067543,1744684244341,-516.56,0.00017897,2]
[358067544,1744684244350,-516.56,0.00017897,2]
[358067545,1744684244359,-516.56,0.00017897,2]
[358067546,1744684244368,-516.56,0.00017897,2]
[358067547,1744684244379,-516.56,0.00017897,2]
[358067548,1744684244390,-516.56,0.00017897,2]
[358067549,1744684244399,-516.56,0.00017897,2]
[358067550,1744684244408,-516.56,0.00017897,2]
[358067551,1744684244417,-516.56,0.00017897,2]
[358067552,1744684244426,-516.56,0.00017897,2]
[358067553,1744684244436,-516.56,0.00017897,2]
[358067554,1744684244445,-516.56,0.00017897,2]
[358067555,1744684244455,-516.56,0.00017897,2]
[358067556,1744684244465,-512.3159886,0.00017897,2]
[358067557,1744684244475,-516.56,0.00017897,2]
[358067558,1744684244484,-516.56,0.00017897,2]
[358067559,1744684244494,-516.56,0.00017897,2]
[358067560,1744684244503,-516.56,0.00017897,2]
[358067561,1744684244513,-516.56,0.00017897,2]
[358067562,1744684244522,-516.56,0.00017897,2]
[358067563,1744684244532,-516.56,0.00017897,2]
[358067564,1744684244541,-516.56,0.00017897,2]
[358067565,1744684244550,-516.56,0.00017897,2]
[358067566,1744684244559,-516.67,0.00017897,2]
[358067567,1744684244569,-500.0,0.00017897,2]
[358067568,1744684244579,-255.66,0.00017897,2]
[358067569,1744684244589,-500.0,0.00017897,2]
[358067570,1744684244599,-500.0,0.00017897,2]
[358067571,1744684244608,-593.52245218,0.00017897,2]
[358067572,1744684244617,-248.84,0.00017897,2]
[358067573,1744684244627,-500.0,0.00017897,2]
[358067574,1744684244636,-500.0,0.00017897,2]
[358067575,1744684244646,-500.0,0.00017897,2]
[358067576,1744684244655,-500.0,0.00017897,2]
[358067577,1744684244664,-500.0,0.00017897,2]
[358067578,1744684244674,-500.0,0.00017897,2]
[358067579,1744684244684,-500.0,0.00017897,2]
[358067580,1744684244693,-421.74311857,0.00017897,2]
[358067581,1744684244703,-519.76443301,0.00017897,2]
[358067582,1744684244712,-500.0,0.00017897,2]
[358067583,1744684244721,-504.30172002,0.00017897,2]
[358067584,1744684244734,-500.0,0.00017897,2]
[358067585,1744684244744,-500.0,0.00017897,2]
[358067586,1744684244753,-518.5418252,0.00017897,2]
[358067587,1744684244764,-500.0,0.00017897,2]
[358067588,1744684244773,-500.0,0.00017897,2]
[358067589,1744684244783,-500.0,0.00017897,2]
[358067590,1744684244793,-500.0,0.00017897,2]
[358067591,1744684244803,-500.0,0.00017897,2]
[358067592,1744684244814,-500.0,0.00017897,2]
[358067593,1744684244824,-505.43402451,0.00017897,2]
[358067594,1744684244834,-521.63976808,0.00017897,2]
[358067595,1744684244843,-500.0,0.00017897,2]
[358067596,1744684244853,-500.0,0.00017897,2]
[358067597,1744684244863,-307.12,0.00017897,2]
[358067598,1744684244873,-500.0,0.00017897,2]
[358067599,1744684244883,-247.49145039,0.00017897,2]
[358067600,1744684244894,-500.0,0.00017897,2]
[358067601,1744684244904,-500.0,0.00017897,2]
[358067602,1744684244914,-500.0,0.00017897,2]
[358067603,1744684244923,-500.0,0.00017897,2]
[358067604,1744684244933,-595.35,0.00017897,2]
[358067605,1744684244943,-500.0,0.00017897,2]
[358067606,1744684244952,-347.79676088,0.00017897,2]
[358067607,1744684244963,-504.97311187,0.00017897,2]
[358067608,1744684244973,-500.0,0.00017897,2]
[358067609,1744684244982,-478.38,0.00017897,2]
[358067610,1744684244992,-165.37,0.00017897,2]
[358067611,1744684245001,-500.0,0.00017897,2]
[358067612,1744684245010,-500.0,0.00017897,2]
[358067613,1744684245020,-500.0,0.00017897,2]
[358067614,1744684245029,-500.0,0.00017897,2]
[358067615,1744684245039,-500.0,0.00017897,2]
[358067616,1744684245048,-500.0,0.00017897,2]
[358067617,1744684245057,-500.0,0.00017897,2]
[358067618,1744684245067,-500.0,0.00017897,2]
[358067619,1744684245076,-500.0,0.00017897,2]
[358067620,1744684245085,-500.0,0.00017897,2]
[358067621,1744684245094,-371.03,0.00017897,2]
[358067622,1744684245103,-500.0,0.00017897,2]
[358067623,1744684245113,-519.4144248,0.00017897,2]
[358067624,1744684245122,-500.0,0.00017897,2]
[358067625,1744684245132,-552.42162006,0.00017897,2]
[358067626,1744684245142,-500.0,0.00017897,2]
[358067627,1744684245151,-500.0,0.00017897,2]
[358067628,1744684245161,-450.19,0.00017897,2]
[358067629,1744684245170,-500.0,0.00017897,2]
[358067630,1744684245180,-500.0,0.00017897,2]
[358067631,1744684245189,-500.0,0.00017897,2]
[358067632,1744684245200,-360.59614129,0.00017897,2]
[358067633,1744684245209,-500.0,0.00017897,2]
[358067634,1744684245218,-2523.98,0.00017897,2]
[358067635,1744684245228,-508.65,0.00017897,2]
[358067636,1744684245237,-2523.98,0.00017897,2]
[358067637,1744684245247,-364.83036486,0.00017897,2]
[358067638,1744684245256,-2523.98,0.00017897,2]
[358067639,1744684245266,-2523.98,0.00017897,2]
[358067640,1744684245275,-2523.98,0.00017897,2]
[358067641,1744684245285,-2523.98,0.00017897,2]
[358067642,1744684245296,-2523.98,0.00017897,2]
[358067643,1744684245306,-2523.98,0.00017897,2]
[358067644,1744684245316,-2523.98,0.00017897,2]
[358067645,1744684245326,-2523.98,0.00017897,2]
[358067646,1744684245336,-2523.98,0.00017897,2]
[358067647,1744684245347,-2523.98,0.00017897,2]
[358067648,1744684245356,-2523.98,0.00017897,2]
[358067649,1744684245367,-2523.98,0.00017897,2]
[358067650,1744684245378,-2523.98,0.00017897,2]
[358067651,1744684245555,-2523.98,0.00017897,2]
[358067652,1744684245567,-2523.98,0.00017897,2]
[358067653,1744684245577,-500.0,0.00017897,2]
[358067654,1744684245587,-2523.98,0.00017897,2]
[358067655,1744684245598,-500.0,0.00017897,2]
[358067656,1744684245609,-2523.98,0.00017897,2]
[358067657,1744684245619,-500.0,0.00017897,2]
[358067658,1744684245628,-2523.98,0.00017897,2]
[358067659,1744684245638,-2523.98,0.00017897,2]
[358067660,1744684245647,-2523.98,0.00017897,2]
[358067661,1744684245656,-2524.05553037,0.00017897,2]
[358067662,1744684245666,-626.38,0.00017897,2]
[358067663,1744684245676,-500.0,0.00017897,2]
[358067664,1744684245686,-500.0,0.00017897,2]
[358067665,1744684245696,-500.0,0.00017897,2]
[358067666,1744684245706,-500.0,0.00017897,2]
[358067667,1744684245717,-500.0,0.00017897,2]
[358067668,1744684245727,-500.0,0.00017897,2]
[358067669,1744684245737,-500.0,0.00017897,2]
[358067670,1744684245748,-500.0,0.00017897,2]
[358067671,1744684245758,-500.0,0.00017897,2]
[358067672,1744684245768,-500.0,0.00017897,2]
[358067673,1744684245778,-192.82797984,0.00017897,2]
[358067674,1744684245788,-500.0,0.00017897,2]
[358067675,1744684245798,-500.0,0.00017897,2]
[358067676,1744684245807,-500.0,0.00017897,2]
[358067677,1744684245816,-500.0,0.00017897,2]
[358067678,1744684245826,-500.0,0.00017897,2]
[358067679,1744684245835,-500.0,0.00017897,2]
[358067680,1744684245846,-500.0,0.00017897,2]
[358067681,1744684245855,-500.0,0.00017897,2]
[358067682,1744684245865,-500.0,0.00017897,2]
[358067683,1744684245875,-500.0,0.00017897,2]
[358067684,1744684245885,-500.0,0.00017897,2]
[358067685,1744684245895,-500.0,0.00017897,2]
[358067686,1744684245905,-500.0,0.00017897,2]
[358067687,1744684245915,-500.0,0.00017897,2]
[358067688,1744684245925,-500.0,0.00017897,2]
[358067689,1744684245936,-500.0,0.00017897,2]
[358067690,1744684245946,-500.0,0.00017897,2]
[358067691,1744684245956,-500.0,0.00017897,2]
[358067692,1744684245966,-500.0,0.00017897,2]
[358067693,1744684245976,-415.46,0.00017897,2]
[358067694,1744684245986,-734.09,0.00017897,2]
[358067695,1744684245996,-613.47,0.00017897,2]
[358067696,1744684246006,-734.09,0.00017897,2]
[358067698,1744684246016,-734.09,0.00017897,2]
[358067699,1744684246026,-734.09,0.00017897,2]
[358067700,1744684246036,-734.09,0.00017897,2]
[358067701,1744684246046,-734.09,0.00017897,2]
[358067702,1744684246056,-734.09,0.00017897,2]
[358067703,1744684246066,-734.09,0.00017897,2]
[358067704,1744684246076,-734.09,0.00017897,2]
[358067705,1744684246086,-500.0,0.00017897,2]
[358067706,1744684246096,-734.09,0.00017897,2]
[358067707,1744684246106,-500.0,0.00017897,2]
[358067708,1744684246116,-500.0,0.00017897,2]
[358067710,1744684246127,-734.09,0.00017897,2]
[358067711,1744684246138,-575.41519335,0.00017897,2]
[358067712,1744684246148,-734.09,0.00017897,2]
[358067713,1744684246159,-734.09,0.00017897,2]
[358067714,1744684246169,-734.09,0.00017897,2]
[358067715,1744684246179,-734.09,0.00017897,2]
[358067716,1744684246189,-734.09,0.00017897,2]
[358067717,1744684246198,-734.09,0.00017897,2]
[358067718,1744684246208,-734.09,0.00017897,2]
[358067719,1744684246217,-734.09,0.00017897,2]
[358067720,1744684246227,-734.09,0.00017897,2]
[358067721,1744684246237,-734.09,0.00017897,2]
[358067722,1744684246249,-734.09,0.00017897,2]
[358067723,1744684246258,-734.28,0.00017897,2]
[358067724,1744684246267,-500.0,0.00017897,2]
[358067725,1744684246277,-619.53,0.00017897,2]
[358067726,1744684246287,-500.0,0.00017897,2]
[358067727,1744684246300,-500.0,0.00017897,2]
[358067728,1744684246309,-500.0,0.00017897,2]
[358067729,1744684246319,-500.0,0.00017897,2]
[358067730,1744684246329,-500.0,0.00017897,2]
[358067731,1744684246339,-500.0,0.00017897,2]
[358067732,1744684246348,-389.31,0.00017897,2]
[358067733,1744684246358,-500.0,0.00017897,2]
[358067734,1744684246367,-500.0,0.00017897,2]
[358067735,1744684246378,-353.38,0.00017897,2]
[358067736,1744684246387,-500.0,0.00017897,2]
[358067737,1744684246397,-500.0,0.00017897,2]
[358067738,1744684246406,-598.49,0.00017897,2]
[358067739,1744684246416,-500.0,0.00017897,2]
[358067740,1744684246426,-500.0,0.00017897,2]
[358067741,1744684246435,-524.19756684,0.00017897,2]
[358067742,1744684246445,-500.0,0.00017897,2]
[358067743,1744684246455,-500.0,0.00017897,2]
[358067744,1744684246465,-159.60101065,0.00017897,2]
[358067745,1744684246475,-500.0,0.00017897,2]
[358067746,1744684246484,-349.67833423,0.00017897,2]
[358067747,1744684246494,-500.0,0.00017897,2]
[358067748,1744684246503,-500.0,0.00017897,2]
[358067749,1744684246512,-259.83630083,0.00017897,2]
[358067750,1744684246522,-500.0,0.00017897,2]
[358067751,1744684246531,-500.0,0.00017897,2]
[358067752,1744684246541,-500.0,0.00017897,2]
[358067753,1744684246550,-500.0,0.00017897,2]
[358067754,1744684246560,-500.0,0.00017897,2]
[358067755,1744684246569,-500.0,0.00017897,2]
[358067756,1744684246578,-500.0,0.00017897,2]
[358067757,1744684246588,-500.0,0.00017897,2]
[358067758,1744684246597,-173.64,0.00017897,2]
[358067759,1744684246607,-500.0,0.00017897,2]
[358067760,1744684246616,-500.0,0.00017897,2]
[358067761,1744684246626,-500.0,0.00017897,2]
[358067762,1744684246635,-500.0,0.00017897,2]
[358067763,1744684246645,-500.0,0.00017897,2]
[358067764,1744684246655,-500.0,0.00017897,2]
[358067765,1744684246664,-500.0,0.00017897,2]
[358067766,1744684246674,-242.65579518,0.00017897,2]
[358067767,1744684246684,-500.0,0.00017897,2]
[358067768,1744684246694,-500.0,0.00017897,2]
[358067769,1744684246704,-500.0,0.00017897,2]
[358067770,1744684246714,-683.98,0.00017897,2]
[358067771,1744684246724,-683.98,0.00017897,2]
[358067772,1744684246734,-683.98,0.00017897,2]
[358067773,1744684246743,-683.98,0.00017897,2]
[358067774,1744684246753,-683.98,0.00017897,2]
[358067775,1744684246762,-683.98,0.00017897,2]
[358067776,1744684246773,-683.98,0.00017897,2]
[358067778,1744684246783,-683.98,0.00017897,2]
[358067780,1744684246793,-683.98,0.00017897,2]
[358067782,1744684246803,-683.98,0.00017897,2]
[358067784,1744684246813,-683.98,0.00017897,2]
[358067786,1744684246823,-500.0,0.00017897,2]
[358067788,1744684246833,-683.98,0.00017897,2]
[358067791,1744684246842,-683.98,0.00017897,2]
[358067792,1744684246851,-683.98,0.00017897,2]
[358067794,1744684246860,-683.98,0.00017897,2]
[358067796,1744684246870,-683.98,0.00017897,2]
[358067797,1744684246879,-683.98,0.00017897,2]
[358067798,1744684246889,-683.98,0.00017897,2]
[358067799,1744684246899,-683.98,0.00017897,2]
[358067800,1744684246908,-500.0,0.00017897,2]
[358067801,1744684246918,-683.98,0.00017897,2]
[358067802,1744684246927,-500.0,0.00017897,2]
[358067803,1744684246936,-683.98,0.00017897,2]
[358067804,1744684246946,-318.08,0.00017897,2]
[358067805,1744684246955,-683.98,0.00017897,2]
[358067806,1744684246965,-684.17,0.00017897,2]
[358067807,1744684246975,-500.0,0.00017897,2]
[358067808,1744684246984,-500.0,0.00017897,2]
[358067809,1744684246994,-500.0,0.00017897,2]
[358067810,1744684247003,-1254.31,0.00017897,2]
[358067811,1744684247013,-1254.31,0.00017897,2]
[358067812,1744684247022,-1254.31,0.00017897,2]
[358067813,1744684247032,-1254.31,0.00017897,2]
[358067814,1744684247041,-1254.31,0.00017897,2]
[358067815,1744684247051,-1254.31,0.00017897,2]
[358067816,1744684247060,-1254.31,0.00017897,2]
[358067817,1744684247071,-1254.31,0.00017897,2]
[358067818,1744684247081,-1254.31,0.00017897,2]
[358067819,1744684247090,-1254.31,0.00017897,2]
[358067820,1744684247101,-1254.31,0.00017897,2]
[358067821,1744684247110,-1254.31,0.00017897,2]
[358067822,1744684247120,-1254.31,0.00017897,2]
[358067823,1744684247130,-1254.31,0.00017897,2]
[358067824,1744684247140,-1254.31,0.00017897,2]
[358067825,1744684247149,-1254.31,0.00017897,2]
[358067826,1744684247159,-1254.31,0.00017897,2]
[358067827,1744684247169,-1254.31,0.00017897,2]
[358067828,1744684247179,-1254.31,0.00017897,2]
[358067829,1744684247188,-1254.31,0.00017897,2]
[358067830,1744684247197,-1254.31,0.00017897,2]
[358067831,1744684247207,-1254.31,0.00017897,2]
[358067832,1744684247217,-1254.41,0.00017897,2]
[358067833,1744684247227,-500.0,0.00017897,2]
[358067834,1744684247237,-492.91231677,0.00017897,2]
[358067835,1744684247245,-517.01,0.00017897,2]
[358067836,1744684247253,-1498.99,0.00017897,2]
[358067837,1744684247262,-1498.99,0.00017897,2]
[358067838,1744684247270,-1498.99,0.00017897,2]
[358067839,1744684247279,-1498.99,0.00017897,2]
[358067840,1744684247288,-1498.99,0.00017897,2]
[358067841,1744684247301,-1498.99,0.00017897,2]
[358067842,1744684247310,-1498.99,0.00017897,2]
[358067843,1744684247320,-1498.99,0.00017897,2]
[358067844,1744684247329,-1498.99,0.00017897,2]
[358067845,1744684247339,-1498.99,0.00017897,2]
[358067846,1744684247348,-1498.99,0.00017897,2]
[358067847,1744684247357,-1498.99,0.00017897,2]
[358067848,1744684247367,-1498.99,0.00017897,2]
[358067849,1744684247378,-1498.99,0.00017897,2]
[358067850,1744684247388,-1498.99,0.00017897,2]
[358067851,1744684247398,-1498.99,0.00017897,2]
[358067852,1744684247408,-1498.99,0.00017897,2]
[358067853,1744684247418,-1498.99,0.00017897,2]
[358067854,1744684247428,-1498.99,0.00017897,2]
[358067855,1744684247438,-1498.99,0.00017897,2]
[358067856,1744684247448,-1498.99,0.00017897,2]
[358067857,1744684247457,-1498.99,0.00017897,2]
[358067858,1744684247468,-1499.02602182,0.00017897,2]
[358067859,1744684247477,-1556.0,0.00017898,2]
[358067860,1744684247487,-378544.60055508,0.00017898,2]
[358067861,1744684247575,-253.35224742,0.00017894,2]
[358067862,1744684247587,-246.64775258,0.00017894,2]
[358067863,1744684247598,-214.13472627,0.00017895,2]
[358067864,1744684249814,-724.00391088,0.00017797,2]
[358067865,1744684249826,-330.7624853,0.00017797,2]
[358067866,1744684249836,-285.86527373,0.00017895,2]
[358067867,1744684249846,-514.82146612,0.00017895,2]
[358067868,1744684249861,-506.63565607,0.00017895,2]
[358067869,1744684249871,-500.0,0.00017896,2]
[358067870,1744684249880,-3414.91511878,0.00017898,2]
[358067871,1744684249892,-456.30131,0.00017898,2]
[358067872,1744684249903,-45039.14034382,0.00017898,2]
[358067873,1744684270294,1778.957154,7.945e-05,2]
[358067874,1744684294889,-186.16486842,0.00017756,2]
[358067875,1744684321871,350.0,0.00019531,12]
[358067876,1744684322013,-229.81104633,0.00017756,2]
[358067877,1744684326387,-250.0,0.00017756,2]
[358067878,1744684366083,-278.64460577,0.00017695,2]
[358067880,1744684423791,228.47,0.00016867,2]
[358067881,1744684427387,-188.42987274,0.00017695,2]
[358067882,1744684574122,890.15,0.00016854,2]
[358067883,1744684622555,250.0,0.00016854,2]
[358067884,1744684678100,180.59,0.00016854,2]
[358067885,1744684678724,-180.59,0.00017695,2]
[358067886,1744684680462,-655.67388244,0.00017695,2]
[358067887,1744684792421,174.13,0.00016845,2]
[358067888,1744684792655,174.13,0.0001685,2]
[358067889,1744684792874,174.13,0.00016854,2]
[358067890,1744684793076,174.13,0.00016859,2]
[358067891,1744684793507,174.13,0.00016863,2]
[358067892,1744684793898,174.13,0.00016868,2]
[358067893,1744684793933,-174.13,0.00017668,2]
[358067894,1744684793983,174.13,0.00016872,2]
[358067895,1744684794413,174.13,0.00016876,2]
[358067896,1744684794655,174.13,0.00016881,2]
[358067897,1744684794862,174.13,0.00016885,2]
[358067898,1744684795056,174.13,0.0001689,2]
[358067899,1744684795265,174.13,0.00016894,2]
[358067900,1744684795533,174.13,0.00016899,2]
[358067901,1744684795766,174.13,0.00016903,2]
[358067902,1744684795865,-174.13,0.00017668,2]
[358067903,1744684795970,174.13,0.00016907,2]
[358067904,1744684796173,174.13,0.00016912,2]
[358067905,1744684796374,174.13,0.00016916,2]
[358067906,1744684796570,174.13,0.00016921,2]
[358067907,1744684796794,174.13,0.00016925,2]
[358067908,1744684797040,174.13,0.0001693,2]
[358067909,1744684817655,168.57,0.0001735,2]
[358067910,1744684886257,2610.31,0.00016849,2]
[358067911,1744684888282,-168.0581565,0.00017656,2]